[Event "Eurasia Open Cup 2019"]
[Site "Ekaterinburg"]
[Date "2019.07.31"]
[Round "1.20"]
[White "Kharitonov, Egor"]
[Black "Hamitevici, Vladimir"]
[Result "1/2-1/2"]
[ECO "A57"]
[WhiteElo "2387"]
[BlackElo "2480"]
[Annotator "ChessBase"]
[PlyCount "163"]
[EventDate "2019.07.31"]
[EventType "swiss"]
[EventCountry "RUS"]
[SourceTitle "playchess.com"]
[Source "ChessBase"]
[SourceQuality "1"]
[TimeControl "5400+30"]

1. d4 {[%emt 0:27:26]} Nf6 {[%emt 0:34:38]} 2. c4 {[%emt 0:01:33]} c5 {[%emt 0:20:53]} 3. d5 {[%emt 0:05:00]} b5 {[%emt 0:02:27]} 4. cxb5 {[%emt 0:12:53]} a6 {[%emt 0:07:34]} 5. b6 {[%emt 0:10:00]} d6 {[%emt 0:06:12]} 6. Nc3 {[%emt 0:00:50]} Nbd7 {[%emt 0:02:43]} 7. e4 {[%emt 0:04:03]} Rb8 {[%emt 0:08:07]} 8. Nf3 {[%emt 0:01:54]} g6 {[%emt 0:00:49]} 9. Be2 {[%emt 0:06:17]} Bg7 {[%emt 0:03:28]} 10. O-O {[%emt 0:01:09]} O-O {[%emt 0:00:21]} 11. Nd2 {[%emt 0:02:10]} Nxb6 {[%emt 0:04:43]} 12. a4 {[%emt 0:00:20]} Nfd7 {[%emt 0:00:43]} 13. Ra3 {[%emt 0:00:07]} Na8 {[%emt 0:00:00]} 14. Kh1 {[%emt 0:11:06]} Rb4 {[%emt 0:00:00]} 15. Qc2 {[%emt 0:01:27]} f5 {[%emt 0:01:14]} 16. Na2 {[%emt 0:00:07]} Rb8 {[%emt 0:00:39]} 17. exf5 {[%emt 0:01:12]} gxf5 {[%emt 0:00:14]} 18. Nf3 {[%emt 0:00:43]} Nf6 {[%emt 0:01:16]} 19. Rd1 {[%emt 0:03:41]} Qe8 {[%emt 0:01:01]} 20. Kg1 {[%emt 0:03:50]} Kh8 {[%emt 0:00:00]} 21. Ng5 {[%emt 0:00:15]} Nc7 {[%emt 0:00:33]} 22. Bc4 {[%emt 0:03:31]} Qg6 {[%emt 0:01:53]} 23. Nh3 {[%emt 0:00:45]} Nh5 {[%emt 0:00:24]} 24. Rf3 {[%emt 0:00:41]} Be5 {[%emt 0:00:20]} 25. b3 {[%emt 0:00:32]} Rg8 {[%emt 0:00:04]} 26. Bf1 {[%emt 0:00:08]} e6 {[%emt 0:00:34]} 27. Re3 {[%emt 0:00:07]} Nxd5 {[%emt 0:01:24]} 28. Rxe5 {[%emt 0:00:10]} dxe5 {[%emt 0:00:30]} 29. Bb2 {[%emt 0:00:23]} Ng7 {[%emt 0:00:21]} 30. Bxe5 {[%emt 0:00:33]} Rb6 {[%emt 0:00:06]} 31. a5 {[%emt 0:01:11]} Rc6 {[%emt 0:00:37]} 32. Nc3 {[%emt 0:00:31]} Nf6 {[%emt 0:00:49]} 33. Nf4 {[%emt 0:00:21]} Qh6 {[%emt 0:00:22]} 34. Qe2 {[%emt 0:00:31]} Bb7 {[%emt 0:01:06]} 35. Na4 {[%emt 0:00:39]} Rf8 {[%emt 0:00:27]} 36. Qb2 {[%emt 0:00:03]} Kg8 {[%emt 0:00:08]} 37. h3 {[%emt 0:00:53]} Qg5 {[%emt 0:00:28]} 38. g3 {[%emt 0:00:41]} Nfe8 {[%emt 0:00:10]} 39. Bg2 {[%emt 0:00:32]} Qe7 {[%emt 0:00:00]} 40. Nb6 {[%emt 0:00:18]} Rxb6 {[%emt 0:00:24]} 41. axb6 {[%emt 0:00:31]} Bxg2 {[%emt 0:00:21]} 42. Nxg2 {[%emt 0:00:35]} Qb7 {[%emt 0:00:30]} 43. Qc3 {[%emt 0:00:37]} Qxb6 {[%emt 0:00:44]} 44. Nf4 {[%emt 0:00:44]} Rf7 {[%emt 0:00:11]} 45. Qc4 {[%emt 0:00:22]} Rb7 {[%emt 0:01:26]} 46. Rd3 {[%emt 0:00:19]} Qb5 {[%emt 0:00:43]} 47. Rd8 {[%emt 0:00:29]} Kf7 {[%emt 0:00:36]} 48. Rc8 {[%emt 0:00:46]} Qxb3 {[%emt 0:00:35]} 49. Qxc5 {[%emt 0:00:07]} Qb1+ {[%emt 0:01:03]} 50. Kh2 {[%emt 0:00:07]} Qb6 {[%emt 0:00:04]} 51. Qxb6 {[%emt 0:00:43]} Rxb6 {[%emt 0:00:08]} 52. Ra8 {[%emt 0:00:32]} Rb5 {[%emt 0:00:09]} 53. Ra7+ {[%emt 0:00:57]} Kf8 {[%emt 0:00:58]} 54. Bxg7+ {[%emt 0:00:31]} Nxg7 {[%emt 0:00:05]} 55. Rxa6 {[%emt 0:00:59]} Kf7 {[%emt 0:00:05]} 56. Kg2 {[%emt 0:00:06]} Rb7 {[%emt 0:00:15]} 57. Nd3 {[%emt 0:00:14]} Kf6 {[%emt 0:00:54]} 58. Ra8 {[%emt 0:00:27]} Rd7 {[%emt 0:00:03]} 59. Ra3 {[%emt 0:00:50]} h5 {[%emt 0:01:44]} 60. h4 {[%emt 0:00:19]} Rd6 {[%emt 0:00:06]} 61. Rc3 {[%emt 0:00:10]} e5 {[%emt 0:00:46]} 62. Nb4 {[%emt 0:00:05]} Ne6 {[%emt 0:00:04]} 63. Rd3 {[%emt 0:01:08]} Nd4 {[%emt 0:00:21]} 64. Nc2 {[%emt 0:00:11]} Ke6 {[%emt 0:00:29]} 65. Nxd4+ {[%emt 0:01:32]} exd4 {[%emt 0:00:06]} 66. Kf3 {[%emt 0:00:06]} Ke5 {[%emt 0:00:04]} 67. Rd1 {[%emt 0:01:30]} Rc6 {[%emt 0:03:18]} 68. Re1+ {[%emt 0:00:30]} Kf6 {[%emt 0:00:30]} 69. Rd1 {[%emt 0:00:30]} Ke5 {[%emt 0:00:30]} 70. Re1+ {[%emt 0:00:30]} Kd5 {[%emt 0:00:30]} 71. Kf4 {[%emt 0:00:30]} d3 {[%emt 0:00:30]} 72. Kxf5 {[%emt 0:00:30]} Kd4 {[%emt 0:00:30]} 73. g4 {[%emt 0:00:30]} hxg4 {[%emt 0:00:30]} 74. Kxg4 {[%emt 0:00:30]} Rc2 {[%emt 0:00:30]} 75. f4 {[%emt 0:00:30]} Re2 {[%emt 0:00:30]} 76. Rd1 {[%emt 0:00:30]} Ke4 {[%emt 0:00:30]} 77. f5 {[%emt 0:00:30]} Rg2+ {[%emt 0:00:30]} 78. Kh5 {[%emt 0:00:30]} Rf2 {[%emt 0:00:30]} 79. Kg6 {[%emt 0:00:30]} Rg2+ {[%emt 0:00:30]} 80. Kh5 {[%emt 0:00:30]} Rf2 {[%emt 0:00:30]} 81. Kg6 {[%emt 0:00:30]} Rg2+ {[%emt 0:00:30]} 82. Kh5 {[%emt 0:00:30]} 1/2-1/2

[Event "Eurasia Open Cup 2019"]
[Site "Ekaterinburg"]
[Date "2019.07.31"]
[Round "1.21"]
[White "Balashov, Yuri S"]
[Black "Khaliullin, Albert"]
[Result "1/2-1/2"]
[ECO "A31"]
[WhiteElo "2474"]
[BlackElo "2004"]
[Annotator "ChessBase"]
[PlyCount "148"]
[EventDate "2019.07.31"]
[EventType "swiss"]
[EventCountry "RUS"]
[SourceTitle "playchess.com"]
[Source "ChessBase"]
[SourceQuality "1"]
[TimeControl "5400+30"]

1. Nf3 {[%emt 0:58:41]} Nf6 {[%emt 0:08:27]} 2. c4 {[%emt 0:00:12]} c5 {[%emt 0:00:11]} 3. Nc3 {[%emt 0:01:55]} b6 {[%emt 0:04:10]} 4. d4 {[%emt 0:04:15]} cxd4 {[%emt 0:10:53]} 5. Nxd4 {[%emt 0:02:37]} Bb7 {[%emt 0:08:47]} 6. Bg5 {[%emt 0:01:56]} Nc6 {[%emt 0:01:13]} 7. e4 {[%emt 0:00:35]} d6 {[%emt 0:01:45]} 8. Nxc6 {[%emt 0:00:30]} Bxc6 {[%emt 0:05:55]} 9. Bd3 {[%emt 0:02:30]} e6 {[%emt 0:00:14]} 10. O-O {[%emt 0:00:03]} Be7 {[%emt 0:03:06]} 11. Qe2 {[%emt 0:05:28]} h6 {[%emt 0:01:12]} 12. Be3 {[%emt 0:00:11]} Qc7 {[%emt 0:00:53]} 13. Rac1 {[%emt 0:01:13]} Qb7 {[%emt 0:01:01]} 14. f3 {[%emt 0:02:56]} O-O {[%emt 0:03:49]} 15. Rfd1 {[%emt 0:00:15]} Rad8 {[%emt 0:04:22]} 16. Bb1 {[%emt 0:01:21]} Rfe8 {[%emt 0:02:23]} 17. Qd3 {[%emt 0:01:40]} Nd7 {[%emt 0:00:33]} 18. Nd5 {[%emt 0:02:10]} Ne5 {[%emt 0:00:47]} 19. Nxe7+ {[%emt 0:00:18]} Qxe7 {[%emt 0:01:04]} 20. Qd4 {[%emt 0:00:52]} Qh4 {[%emt 0:00:43]} 21. Bf2 {[%emt 0:01:25]} Qg5 {[%emt 0:04:18]} 22. Bg3 {[%emt 0:00:11]} Ng6 {[%emt 0:00:50]} 23. Qd2 {[%emt 0:01:03]} Qh5 {[%emt 0:00:02]} 24. Qf2 {[%emt 0:00:09]} e5 {[%emt 0:00:48]} 25. Qe3 {[%emt 0:01:50]} Nf8 {[%emt 0:00:43]} 26. Qa3 {[%emt 0:00:49]} Ne6 {[%emt 0:02:27]} 27. Rxd6 {[%emt 0:02:46]} Nd4 {[%emt 0:06:00]} 28. Rxd8 {[%emt 0:00:02]} Rxd8 {[%emt 0:02:22]} 29. Qe3 {[%emt 0:02:14]} f6 {[%emt 0:01:03]} 30. Bd3 {[%emt 0:02:42]} Ne6 {[%emt 0:02:45]} 31. Be2 {[%emt 0:00:15]} Qe8 {[%emt 0:02:00]} 32. Rd1 {[%emt 0:01:13]} Rxd1+ {[%emt 0:03:51]} 33. Bxd1 {[%emt 0:00:18]} Qd7 {[%emt 0:01:14]} 34. Be2 {[%emt 0:00:54]} Nc5 {[%emt 0:01:16]} 35. Be1 {[%emt 0:00:58]} a5 {[%emt 0:02:05]} 36. Bxa5 {[%emt 0:00:21]} Qa7 {[%emt 0:01:03]} 37. Bb4 {[%emt 0:00:01]} Qxa2 {[%emt 0:01:09]} 38. Ba3 {[%emt 0:00:03]} Na4 {[%emt 0:00:15]} 39. Qd2 {[%emt 0:00:27]} Qb3 {[%emt 0:00:10]} 40. Kf2 {[%emt 0:00:41]} Kh7 {[%emt 0:00:59]} 41. Qd1 {[%emt 0:01:19]} Qa2 {[%emt 0:00:21]} 42. Qc2 {[%emt 0:00:17]} Nc5 {[%emt 0:00:32]} 43. h4 {[%emt 0:00:43]} Ba4 {[%emt 0:00:18]} 44. Qd2 {[%emt 0:00:02]} Bb3 {[%emt 0:00:12]} 45. Qb4 {[%emt 0:00:51]} Qb1 {[%emt 0:00:55]} 46. Qxb6 {[%emt 0:00:30]} Nd3+ {[%emt 0:00:14]} 47. Bxd3 {[%emt 0:00:27]} Qxd3 {[%emt 0:00:44]} 48. Qe3 {[%emt 0:00:05]} Qxc4 {[%emt 0:00:41]} 49. Kg3 {[%emt 0:00:20]} Ba4 {[%emt 0:00:54]} 50. Bf8 {[%emt 0:01:03]} Qf7 {[%emt 0:00:59]} 51. Bc5 {[%emt 0:00:32]} Bb3 {[%emt 0:00:41]} 52. Qd2 {[%emt 0:00:21]} f5 {[%emt 0:01:40]} 53. exf5 {[%emt 0:00:15]} Qxf5 {[%emt 0:00:32]} 54. Qe3 {[%emt 0:00:39]} Qe6 {[%emt 0:00:21]} 55. Bb4 {[%emt 0:00:12]} Bd5 {[%emt 0:00:31]} 56. Bc3 {[%emt 0:00:12]} e4 {[%emt 0:00:53]} 57. Qd4 {[%emt 0:00:19]} Qg6+ {[%emt 0:00:13]} 58. Kf2 {[%emt 0:01:13]} exf3 {[%emt 0:00:43]} 59. gxf3 {[%emt 0:00:49]} Bc6 {[%emt 0:00:07]} 60. b4 {[%emt 0:00:02]} Qc2+ {[%emt 0:00:20]} 61. Bd2 {[%emt 0:00:20]} Qf5 {[%emt 0:00:25]} 62. Qf4 {[%emt 0:00:17]} Qd3 {[%emt 0:01:29]} 63. Be3 {[%emt 0:00:42]} Qc2+ {[%emt 0:00:04]} 64. Bd2 {[%emt 0:00:10]} Qd3 {[%emt 0:00:11]} 65. Qe3 {[%emt 0:00:07]} Qc4 {[%emt 0:00:09]} 66. Kg3 {[%emt 0:03:13]} Qf7 {[%emt 0:12:03]} 67. Qd3+ {[%emt 0:00:30]} Qg6+ {[%emt 0:00:30]} 68. Qxg6+ {[%emt 0:00:30]} Kxg6 {[%emt 0:00:30]} 69. Bc3 {[%emt 0:00:30]} h5 {[%emt 0:00:30]} 70. Kf4 {[%emt 0:00:30]} Kf7 {[%emt 0:00:30]} 71. Kg5 {[%emt 0:00:30]} Bxf3 {[%emt 0:00:30]} 72. b5 {[%emt 0:00:30]} Ke6 {[%emt 0:00:30]} 73. b6 {[%emt 0:00:30]} Kd7 {[%emt 0:00:30]} 74. Bxg7 {[%emt 0:00:30]} Kc6 {[%emt 0:00:30]} 1/2-1/2

[Event "Eurasia Open Cup 2019"]
[Site "Ekaterinburg"]
[Date "2019.07.31"]
[Round "1.22"]
[White "Fedorov, Ivan"]
[Black "Kostenko, Petr"]
[Result "0-1"]
[ECO "A21"]
[WhiteElo "1997"]
[BlackElo "2471"]
[Annotator "ChessBase"]
[PlyCount "50"]
[EventDate "2019.07.31"]
[EventType "swiss"]
[EventCountry "RUS"]
[SourceTitle "playchess.com"]
[Source "ChessBase"]
[SourceQuality "1"]
[TimeControl "5400+30"]

1. c4 {[%emt 0:38:30]} e5 {[%emt 0:15:46]} 2. Nf3 {[%emt 0:04:46]} d6 {[%emt 0:00:25]} 3. g3 {[%emt 0:15:43]} f5 {[%emt 0:00:53]} 4. Bg2 {[%emt 0:05:57]} Be7 {[%emt 0:00:27]} 5. O-O {[%emt 0:01:32]} c6 {[%emt 0:11:10]} 6. Nc3 {[%emt 0:03:55]} Nf6 {[%emt 0:03:04]} 7. d3 {[%emt 0:01:34]} O-O {[%emt 0:01:47]} 8. Qc2 {[%emt 0:03:13]} Qe8 {[%emt 0:00:34]} 9. Bg5 {[%emt 0:01:22]} Qh5 {[%emt 0:00:30]} 10. Rad1 {[%emt 0:13:18]} Nbd7 {[%emt 0:02:16]} 11. e4 {[%emt 0:00:00]} Nc5 {[%emt 0:00:05]} 12. Bxf6 {[%emt 0:00:18]} Rxf6 {[%emt 0:00:43]} 13. d4 {[%emt 0:00:51]} exd4 {[%emt 0:00:05]} 14. Rxd4 {[%emt 0:06:01]} f4 {[%emt 0:59:15]} 15. Re1 {[%emt 0:00:30]} fxg3 {[%emt 0:00:30]} 16. fxg3 {[%emt 0:00:30]} Rxf3 {[%emt 0:00:30]} 17. Bxf3 {[%emt 0:00:30]} Qxf3 {[%emt 0:00:30]} 18. e5 {[%emt 0:00:30]} Bh3 {[%emt 0:00:30]} 19. Rf4 {[%emt 0:00:30]} Qd3 {[%emt 0:00:30]} 20. Qf2 {[%emt 0:00:30]} Qg6 {[%emt 0:00:30]} 21. exd6 {[%emt 0:00:30]} Bxd6 {[%emt 0:00:30]} 22. Rf3 {[%emt 0:00:30]} Nd3 {[%emt 0:00:30]} 23. Rxd3 {[%emt 0:00:30]} Qxd3 {[%emt 0:00:30]} 24. Rd1 {[%emt 0:00:30]} Qxd1+ {[%emt 0:00:30]} 25. Nxd1 {[%emt 0:00:30]} Rf8 {[%emt 0:00:30]} 0-1

[Event "Eurasia Open Cup 2019"]
[Site "Ekaterinburg"]
[Date "2019.07.31"]
[Round "1.23"]
[White "Kezin, Roman"]
[Black "Makhrov, Alexander"]
[Result "1-0"]
[ECO "E92"]
[WhiteElo "2470"]
[BlackElo "1994"]
[Annotator "ChessBase"]
[PlyCount "85"]
[EventDate "2019.07.31"]
[EventType "swiss"]
[EventCountry "RUS"]
[SourceTitle "playchess.com"]
[Source "ChessBase"]
[SourceQuality "1"]
[TimeControl "5400+30"]

1. d4 {[%emt 0:27:37]} Nf6 {[%emt 0:26:18]} 2. c4 {[%emt 0:00:50]} g6 {[%emt 0:07:44]} 3. Nc3 {[%emt 0:00:32]} Bg7 {[%emt 0:00:00]} 4. e4 {[%emt 0:00:28]} d6 {[%emt 0:01:13]} 5. Nf3 {[%emt 0:19:25]} O-O {[%emt 0:06:07]} 6. h3 {[%emt 0:00:37]} e5 {[%emt 0:03:07]} 7. d5 {[%emt 0:18:54]} Nbd7 {[%emt 0:07:09]} 8. Bg5 {[%emt 0:00:32]} h6 {[%emt 0:03:44]} 9. Be3 {[%emt 0:07:48]} Nc5 {[%emt 0:08:10]} 10. Nd2 {[%emt 0:00:07]} a5 {[%emt 0:00:08]} 11. Be2 {[%emt 0:00:34]} Ne8 {[%emt 0:00:47]} 12. g4 {[%emt 0:04:33]} f5 {[%emt 0:03:25]} 13. gxf5 {[%emt 0:06:59]} gxf5 {[%emt 0:06:48]} 14. Rg1 {[%emt 0:04:33]} Nf6 {[%emt 0:00:34]} 15. Bxh6 {[%emt 0:00:05]} Rf7 {[%emt 0:02:36]} 16. Bg5 {[%emt 0:00:31]} Qf8 {[%emt 0:05:25]} 17. Qc2 {[%emt 0:02:30]} Nfxe4 {[%emt 0:07:23]} 18. Ndxe4 {[%emt 0:00:31]} fxe4 {[%emt 0:01:13]} 19. Nxe4 {[%emt 0:00:30]} Bf5 {[%emt 0:00:06]} 20. f3 {[%emt 0:00:09]} Kh8 {[%emt 0:00:24]} 21. O-O-O {[%emt 0:01:42]} a4 {[%emt 0:02:35]} 22. Rg4 {[%emt 0:00:03]} Bh6 {[%emt 0:00:27]} 23. Qd2 {[%emt 0:00:11]} Nxe4 {[%emt 0:01:38]} 24. fxe4 {[%emt 0:00:17]} Bxg5 {[%emt 0:02:52]} 25. Rxg5 {[%emt 0:00:07]} Bh7 {[%emt 0:00:08]} 26. Qe3 {[%emt 0:00:36]} Rf4 {[%emt 0:00:39]} 27. Rg4 {[%emt 0:00:02]} Qf6 {[%emt 0:00:26]} 28. Rxf4 {[%emt 0:00:06]} exf4 {[%emt 0:01:23]} 29. Qd4 {[%emt 0:03:41]} Qxd4 {[%emt 0:02:01]} 30. Rxd4 {[%emt 0:00:30]} a3 {[%emt 0:00:30]} 31. c5 {[%emt 0:00:30]} axb2+ {[%emt 0:00:30]} 32. Kxb2 {[%emt 0:00:30]} Re8 {[%emt 0:00:30]} 33. cxd6 {[%emt 0:00:30]} cxd6 {[%emt 0:00:30]} 34. Bf3 {[%emt 0:00:30]} Kg7 {[%emt 0:00:30]} 35. Rc4 {[%emt 0:00:30]} Kf6 {[%emt 0:00:30]} 36. Kc3 {[%emt 0:00:30]} Re7 {[%emt 0:00:30]} 37. Kd4 {[%emt 0:00:30]} Bg6 {[%emt 0:00:30]} 38. Rb4 {[%emt 0:00:30]} Kg5 {[%emt 0:00:30]} 39. Rb6 {[%emt 0:00:30]} Rd7 {[%emt 0:00:30]} 40. e5 {[%emt 0:00:30]} dxe5+ {[%emt 0:00:30]} 41. Kxe5 {[%emt 0:00:30]} Re7+ {[%emt 0:00:30]} 42. Re6 {[%emt 0:00:30]} Rd7 {[%emt 0:00:30]} 43. h4+ {[%emt 0:00:30]} 1-0

[Event "Eurasia Open Cup 2019"]
[Site "Ekaterinburg"]
[Date "2019.07.31"]
[Round "1.24"]
[White "Dubnikova, Anastasia"]
[Black "Ulybin, Mikhail"]
[Result "0-1"]
[ECO "A95"]
[WhiteElo "1991"]
[BlackElo "2469"]
[Annotator "ChessBase"]
[PlyCount "174"]
[EventDate "2019.07.31"]
[EventType "swiss"]
[EventCountry "RUS"]
[SourceTitle "playchess.com"]
[Source "ChessBase"]
[SourceQuality "1"]
[TimeControl "5400+30"]

1. d4 {[%emt 0:40:42]} e6 {[%emt 0:38:55]} 2. c4 {[%emt 0:13:31]} f5 {[%emt 0:07:41]} 3. Nc3 {[%emt 0:04:27]} Nf6 {[%emt 0:01:22]} 4. Qc2 {[%emt 0:00:36]} Be7 {[%emt 0:12:28]} 5. g3 {[%emt 0:21:53]} d5 {[%emt 0:02:53]} 6. Bg2 {[%emt 0:01:33]} O-O {[%emt 0:13:49]} 7. Nf3 {[%emt 0:02:39]} c6 {[%emt 0:03:28]} 8. O-O {[%emt 0:03:54]} Bd7 {[%emt 0:02:50]} 9. Rb1 {[%emt 0:03:29]} Be8 {[%emt 0:00:15]} 10. Bf4 {[%emt 0:00:40]} Ne4 {[%emt 0:00:24]} 11. cxd5 {[%emt 0:00:49]} cxd5 {[%emt 0:06:22]} 12. Qb3 {[%emt 0:00:29]} Qb6 {[%emt 0:04:22]} 13. Nxe4 {[%emt 0:00:06]} fxe4 {[%emt 0:00:18]} 14. Ng5 {[%emt 0:00:35]} Bd7 {[%emt 0:00:33]} 15. Bh3 {[%emt 0:01:00]} Rf6 {[%emt 0:00:41]} 16. Qxb6 {[%emt 0:00:10]} axb6 {[%emt 0:00:32]} 17. Bxb8 {[%emt 0:00:19]} Rxb8 {[%emt 0:00:35]} 18. Bg2 {[%emt 0:00:22]} Rff8 {[%emt 0:00:20]} 19. f4 {[%emt 0:00:52]} h6 {[%emt 0:00:37]} 20. Nh3 {[%emt 0:00:47]} Bb5 {[%emt 0:00:31]} 21. Kf2 {[%emt 0:00:34]} e5 {[%emt 0:00:13]} 22. a4 {[%emt 0:00:17]} Ba6 {[%emt 0:00:47]} 23. b4 {[%emt 0:00:44]} exd4 {[%emt 0:00:29]} 24. b5 {[%emt 0:00:06]} Rfc8 {[%emt 0:00:20]} 25. Rfc1 {[%emt 0:00:50]} Rc3 {[%emt 0:00:18]} 26. f5 {[%emt 0:00:36]} Rbc8 {[%emt 0:00:39]} 27. Rd1 {[%emt 0:00:14]} Rc2 {[%emt 0:00:14]} 28. bxa6 {[%emt 0:00:36]} bxa6 {[%emt 0:00:25]} 29. Kf1 {[%emt 0:00:39]} Bc5 {[%emt 0:01:02]} 30. Rbc1 {[%emt 0:00:21]} Rxc1 {[%emt 0:00:30]} 31. Rxc1 {[%emt 0:00:17]} Rf8 {[%emt 0:00:33]} 32. Nf4 {[%emt 0:00:26]} Rxf5 {[%emt 0:00:22]} 33. Ke1 {[%emt 0:00:06]} Kf7 {[%emt 0:00:54]} 34. Bh3 {[%emt 0:00:37]} Re5 {[%emt 0:00:34]} 35. Kd1 {[%emt 0:00:10]} g5 {[%emt 0:00:21]} 36. Nh5 {[%emt 0:02:02]} Kg6 {[%emt 0:00:39]} 37. g4 {[%emt 0:00:04]} a5 {[%emt 0:00:22]} 38. Ng3 {[%emt 0:00:10]} Re7 {[%emt 0:00:42]} 39. Bg2 {[%emt 0:01:08]} Rf7 {[%emt 0:00:32]} 40. Nf5 {[%emt 0:00:25]} h5 {[%emt 0:00:33]} 41. h3 {[%emt 0:00:41]} Rh7 {[%emt 0:00:27]} 42. Ke1 {[%emt 0:00:00]} Kf6 {[%emt 0:00:20]} 43. Kf2 {[%emt 0:00:12]} d3+ {[%emt 0:00:12]} 44. e3 {[%emt 0:00:11]} Ke5 {[%emt 0:00:28]} 45. Kg3 {[%emt 0:00:34]} Rf7 {[%emt 0:00:33]} 46. Rf1 {[%emt 0:00:53]} h4+ {[%emt 0:00:26]} 47. Kh2 {[%emt 0:00:38]} Rf8 {[%emt 0:00:11]} 48. Rc1 {[%emt 0:00:49]} d2 {[%emt 0:00:24]} 49. Rd1 {[%emt 0:00:14]} Rxf5 {[%emt 0:00:38]} 50. gxf5 {[%emt 0:00:31]} Bxe3 {[%emt 0:00:35]} 51. Bf1 {[%emt 0:01:00]} d4 {[%emt 0:00:54]} 52. Be2 {[%emt 0:00:17]} Kxf5 {[%emt 0:00:31]} 53. Kg2 {[%emt 0:00:00]} d3 {[%emt 0:00:21]} 54. Bg4+ {[%emt 0:00:27]} Ke5 {[%emt 0:00:42]} 55. Rb1 {[%emt 0:01:05]} Kd5 {[%emt 0:00:37]} 56. Rb5+ {[%emt 0:00:04]} Bc5 {[%emt 0:00:10]} 57. Kf1 {[%emt 0:00:04]} Kc4 {[%emt 0:00:58]} 58. Rb1 {[%emt 0:00:08]} Kc3 {[%emt 0:00:28]} 59. Bd1 {[%emt 0:00:07]} e3 {[%emt 0:00:21]} 60. Rb3+ {[%emt 0:01:05]} Kc4 {[%emt 0:00:37]} 61. Rb1 {[%emt 0:00:06]} Bb4 {[%emt 0:00:10]} 62. Rb2 {[%emt 0:00:02]} Kc3 {[%emt 0:00:38]} 63. Rb3+ {[%emt 0:00:05]} Kd4 {[%emt 0:00:06]} 64. Rb2 {[%emt 0:00:03]} Bc5 {[%emt 0:00:48]} 65. Rb3 {[%emt 0:01:43]} Kc4 {[%emt 0:00:54]} 66. Rb1 {[%emt 0:00:39]} Bd4 {[%emt 0:00:07]} 67. Rb5 {[%emt 0:00:52]} Kc3 {[%emt 0:00:27]} 68. Rb3+ {[%emt 0:01:43]} Kc4 {[%emt 0:00:38]} 69. Rb5 {[%emt 0:00:05]} e2+ {[%emt 0:00:33]} 70. Bxe2 {[%emt 0:00:31]} dxe2+ {[%emt 0:00:42]} 71. Kxe2 {[%emt 0:00:31]} Kc3 {[%emt 0:00:26]} 72. Rd5 {[%emt 0:00:05]} b5 {[%emt 0:00:36]} 73. axb5 {[%emt 0:00:41]} a4 {[%emt 0:00:23]} 74. Kd1 {[%emt 0:00:05]} a3 {[%emt 0:00:26]} 75. b6 {[%emt 0:00:26]} Bxb6 {[%emt 0:00:37]} 76. Rxd2 {[%emt 0:00:41]} Bd4 {[%emt 0:00:10]} 77. Rg2 {[%emt 0:01:21]} Be3 {[%emt 0:00:10]} 78. Re2 {[%emt 0:00:08]} Bf4 {[%emt 0:00:59]} 79. Rf2 {[%emt 0:00:08]} Kb3 {[%emt 0:00:32]} 80. Rf3+ {[%emt 0:00:03]} Kb2 {[%emt 0:00:16]} 81. Rf2+ {[%emt 0:02:17]} Kb1 {[%emt 0:01:34]} 82. Rf3 {[%emt 0:00:30]} Bc1 {[%emt 0:00:30]} 83. Rb3+ {[%emt 0:00:30]} Bb2 {[%emt 0:00:30]} 84. Rxa3 {[%emt 0:00:30]} Bxa3 {[%emt 0:00:30]} 85. Kd2 {[%emt 0:00:30]} g4 {[%emt 0:00:30]} 86. Ke2 {[%emt 0:00:30]} gxh3 {[%emt 0:00:30]} 87. Kf1 {[%emt 0:00:30]} Bc5 {[%emt 0:00:30]} 0-1

[Event "Eurasia Open Cup 2019"]
[Site "Ekaterinburg"]
[Date "2019.07.31"]
[Round "1.25"]
[White "Kozionov, Kirill"]
[Black "Mamontova, Anastasia"]
[Result "1-0"]
[ECO "E11"]
[WhiteElo "2454"]
[BlackElo "1989"]
[Annotator "ChessBase"]
[PlyCount "75"]
[EventDate "2019.07.31"]
[EventType "swiss"]
[EventCountry "RUS"]
[SourceTitle "playchess.com"]
[Source "ChessBase"]
[SourceQuality "1"]
[TimeControl "5400+30"]

1. d4 {[%emt 0:24:14]} Nf6 {[%emt 0:38:05]} 2. c4 {[%emt 0:15:14]} e6 {[%emt 0:02:22]} 3. g3 {[%emt 0:02:41]} Bb4+ {[%emt 0:03:23]} 4. Bd2 {[%emt 0:16:14]} Qe7 {[%emt 0:03:32]} 5. Nf3 {[%emt 0:03:34]} Nc6 {[%emt 0:00:13]} 6. Nc3 {[%emt 0:00:13]} Bxc3 {[%emt 0:01:17]} 7. Bxc3 {[%emt 0:02:11]} Ne4 {[%emt 0:00:17]} 8. Rc1 {[%emt 0:02:51]} O-O {[%emt 0:01:35]} 9. Bg2 {[%emt 0:20:50]} a5 {[%emt 0:23:33]} 10. O-O {[%emt 0:05:40]} d6 {[%emt 0:01:10]} 11. a3 {[%emt 0:00:46]} Nxc3 {[%emt 0:01:36]} 12. Rxc3 {[%emt 0:00:18]} e5 {[%emt 0:01:09]} 13. d5 {[%emt 0:01:14]} Nb8 {[%emt 0:11:28]} 14. b4 {[%emt 0:00:30]} axb4 {[%emt 0:00:46]} 15. axb4 {[%emt 0:00:30]} e4 {[%emt 0:00:24]} 16. Nd4 {[%emt 0:00:13]} Na6 {[%emt 0:00:31]} 17. Qb1 {[%emt 0:00:06]} f5 {[%emt 0:00:39]} 18. Rfc1 {[%emt 0:01:11]} Bd7 {[%emt 0:00:37]} 19. e3 {[%emt 0:00:30]} c5 {[%emt 0:00:15]} 20. dxc6 {[%emt 0:00:30]} bxc6 {[%emt 0:00:06]} 21. c5 {[%emt 0:00:00]} dxc5 {[%emt 0:01:20]} 22. bxc5 {[%emt 0:00:16]} Rfb8 {[%emt 0:00:06]} 23. Rb3 {[%emt 0:00:08]} Kf8 {[%emt 0:00:05]} 24. Rb6 {[%emt 0:01:36]} Qe8 {[%emt 0:07:31]} 25. Bf1 {[%emt 0:01:00]} Nc7 {[%emt 0:00:30]} 26. Bc4 {[%emt 0:00:30]} Rc8 {[%emt 0:00:30]} 27. Qb4 {[%emt 0:00:30]} f4 {[%emt 0:00:30]} 28. exf4 {[%emt 0:00:30]} Bh3 {[%emt 0:00:30]} 29. Nxc6 {[%emt 0:00:30]} e3 {[%emt 0:00:30]} 30. Ne5 {[%emt 0:00:30]} exf2+ {[%emt 0:00:30]} 31. Kxf2 {[%emt 0:00:30]} Ra4 {[%emt 0:00:30]} 32. Qd2 {[%emt 0:00:30]} Rd8 {[%emt 0:00:30]} 33. Rd6 {[%emt 0:00:30]} Rda8 {[%emt 0:00:30]} 34. Nd7+ {[%emt 0:00:30]} Bxd7 {[%emt 0:00:30]} 35. Rxd7 {[%emt 0:00:30]} Ra2 {[%emt 0:00:30]} 36. Bxa2 {[%emt 0:00:30]} Rxa2 {[%emt 0:00:30]} 37. Qxa2 {[%emt 0:00:30]} Qxd7 {[%emt 0:00:30]} 38. Kg1 {[%emt 0:00:30]} 1-0